[Event "Titled Tuesday Blitz June 14 Early 2022"]
[White "Narayanan, Srinath"]
[Black "Rozman, Levy"]
[WhiteFideId "5018420"]
[BlackFideId "2039877"]
[WhiteElo "2472"]
[BlackElo "2376"]
[Result "1-0"]
[Round "09"]
[TimeControl "180+1"]
[Date "2022.06.14"]
[WhiteClock "0:00:07"]
[BlackClock "0:00:02"]

1. Nf3 {[%clk 0:03:00]}  g6 {[%clk 0:02:42]} 2. c4 {[%clk 0:02:59]}  Bg7 {[%clk 0:02:41]} 3. d4 {[%clk 0:03:00]}  d6 {[%clk 0:02:41]} 4. Nc3 {[%clk 0:03:00]}  Bg4 {[%clk 0:02:33]} 5. e3 {[%clk 0:02:53]}  Nc6 {[%clk 0:02:30]} 6. Be2 {[%clk 0:02:50]}  Nf6 {[%clk 0:02:25]} 7. h3 {[%clk 0:02:40]}  Bc8 {[%clk 0:02:12]} 8. b4 {[%clk 0:02:23]}  Nxb4 {[%clk 0:01:56]} 9. O-O {[%clk 0:02:15]}  O-O {[%clk 0:01:52]} 10. Rb1 {[%clk 0:02:12]}  Nc6 {[%clk 0:01:47]} 11. d5 {[%clk 0:02:12]}  Nb8 {[%clk 0:01:45]} 12. e4 {[%clk 0:02:13]}  Na6 {[%clk 0:01:40]} 13. Be3 {[%clk 0:02:11]}  b6 {[%clk 0:01:38]} 14. Bd4 {[%clk 0:02:06]}  Nc5 {[%clk 0:01:35]} 15. e5 {[%clk 0:02:05]}  Ne8 {[%clk 0:01:35]} 16. Re1 {[%clk 0:02:03]}  e6 {[%clk 0:01:23]} 17. exd6 {[%clk 0:01:59]}  Nxd6 {[%clk 0:01:18]} 18. Ne5 {[%clk 0:01:54]}  Bb7 {[%clk 0:00:59]} 19. Bf3 {[%clk 0:01:36]}  exd5 {[%clk 0:00:54]} 20. Nxd5 {[%clk 0:01:35]}  Ne6 {[%clk 0:00:31]} 21. Ba1 {[%clk 0:01:29]}  Ng5 {[%clk 0:00:18]} 22. Bg4 {[%clk 0:01:23]}  f5 {[%clk 0:00:16]} 23. Be2 {[%clk 0:01:22]}  Nge4 {[%clk 0:00:14]} 24. f4 {[%clk 0:00:58]}  Qh4 {[%clk 0:00:12]} 25. Rf1 {[%clk 0:00:55]}  Rad8 {[%clk 0:00:11]} 26. Nf3 {[%clk 0:00:40]}  Qh6 {[%clk 0:00:09]} 27. Bxg7 {[%clk 0:00:41]}  Qxg7 {[%clk 0:00:10]} 28. Qc2 {[%clk 0:00:35]}  c6 {[%clk 0:00:08]} 29. Ne3 {[%clk 0:00:34]}  Nc3 {[%clk 0:00:08]} 30. Rbe1 {[%clk 0:00:33]}  Rfe8 {[%clk 0:00:08]} 31. Ne5 {[%clk 0:00:33]}  Nxe2+ {[%clk 0:00:08]} 32. Rxe2 {[%clk 0:00:34]}  Ne4 {[%clk 0:00:07]} 33. Rfe1 {[%clk 0:00:26]}  c5 {[%clk 0:00:08]} 34. Nd5 {[%clk 0:00:26]}  Bxd5 {[%clk 0:00:07]} 35. cxd5 {[%clk 0:00:27]}  Nd6 {[%clk 0:00:04]} 36. Nc6 {[%clk 0:00:24]}  Ra8 {[%clk 0:00:05]} 37. Re6 {[%clk 0:00:24]}  c4 {[%clk 0:00:03]} 38. Qe2 {[%clk 0:00:12]}  Qf8 {[%clk 0:00:03]} 39. Ne7+ {[%clk 0:00:12]}  Kf7 {[%clk 0:00:02]} 40. Qe5 {[%clk 0:00:11]}  Ne4 {[%clk 0:00:02]} 41. Nxf5 {[%clk 0:00:07]}  gxf5 {[%clk 0:00:01]} 42. Qxf5+ {[%clk 0:00:08]}  Kg7 {[%clk 0:00:02]} 43. Qxe4 {[%clk 0:00:07]}  Rxe6 {[%clk 0:00:01]} 44. dxe6 {[%clk 0:00:08]}  Qc5+ {[%clk 0:00:01]} 45. Kh2 {[%clk 0:00:08]}  c3 {[%clk 0:00:02]} 46. Qxa8 {[%clk 0:00:07]} 1-0


[Site "https://www.chess.com"]

[Event "Titled Tuesday Blitz June 14 Early 2022"]
[White "Preotu, Razvan"]
[Black "Xu, Yi"]
[WhiteFideId "2613280"]
[BlackFideId "8605564"]
[WhiteElo "2407"]
[BlackElo "2471"]
[Result "1-0"]
[Round "09"]
[TimeControl "180+1"]
[Date "2022.06.14"]
[WhiteClock "0:00:04"]
[BlackClock "0:00:05"]

1. e4 {[%clk 0:03:00]}  c5 {[%clk 0:03:00]} 2. Nf3 {[%clk 0:03:00]}  d6 {[%clk 0:03:00]} 3. d4 {[%clk 0:03:00]}  cxd4 {[%clk 0:03:01]} 4. Nxd4 {[%clk 0:03:01]}  Nf6 {[%clk 0:03:02]} 5. Nc3 {[%clk 0:03:01]}  a6 {[%clk 0:03:02]} 6. Be2 {[%clk 0:03:02]}  e5 {[%clk 0:03:02]} 7. Nb3 {[%clk 0:03:02]}  Be7 {[%clk 0:03:03]} 8. Be3 {[%clk 0:03:02]}  Be6 {[%clk 0:03:03]} 9. O-O {[%clk 0:03:01]}  O-O {[%clk 0:03:03]} 10. Re1 {[%clk 0:02:47]}  h6 {[%clk 0:03:00]} 11. Bf3 {[%clk 0:02:43]}  Qc7 {[%clk 0:02:58]} 12. Qd3 {[%clk 0:02:21]}  Nbd7 {[%clk 0:02:52]} 13. a4 {[%clk 0:02:18]}  Rfd8 {[%clk 0:02:50]} 14. Nd5 {[%clk 0:02:09]}  Bxd5 {[%clk 0:02:47]} 15. exd5 {[%clk 0:02:10]}  a5 {[%clk 0:02:35]} 16. c3 {[%clk 0:01:56]}  Rf8 {[%clk 0:02:17]} 17. Qb5 {[%clk 0:01:55]}  b6 {[%clk 0:02:09]} 18. Nd2 {[%clk 0:01:37]}  Rfc8 {[%clk 0:02:03]} 19. g3 {[%clk 0:01:04]}  Bf8 {[%clk 0:02:03]} 20. Bg2 {[%clk 0:01:04]}  g6 {[%clk 0:02:02]} 21. h3 {[%clk 0:01:00]}  Bg7 {[%clk 0:02:02]} 22. Rad1 {[%clk 0:00:44]}  Rab8 {[%clk 0:02:02]} 23. Bf1 {[%clk 0:00:41]}  Ne8 {[%clk 0:01:59]} 24. Nc4 {[%clk 0:00:41]}  f5 {[%clk 0:01:58]} 25. f4 {[%clk 0:00:40]}  e4 {[%clk 0:01:56]} 26. g4 {[%clk 0:00:30]}  Nef6 {[%clk 0:01:54]} 27. gxf5 {[%clk 0:00:30]}  gxf5 {[%clk 0:01:54]} 28. Be2 {[%clk 0:00:30]}  Nc5 {[%clk 0:01:44]} 29. Kh2 {[%clk 0:00:30]}  Kh7 {[%clk 0:01:36]} 30. Rg1 {[%clk 0:00:30]}  Bh8 {[%clk 0:01:36]} 31. Bd4 {[%clk 0:00:26]}  Ncd7 {[%clk 0:01:25]} 32. Ne3 {[%clk 0:00:26]}  Rf8 {[%clk 0:01:10]} 33. Nxf5 {[%clk 0:00:25]}  Nc5 {[%clk 0:00:33]} 34. Ne3 {[%clk 0:00:17]}  Qf7 {[%clk 0:00:31]} 35. Qc6 {[%clk 0:00:13]}  Rfc8 {[%clk 0:00:29]} 36. Qb5 {[%clk 0:00:07]}  Rg8 {[%clk 0:00:27]} 37. Rdf1 {[%clk 0:00:07]}  Rxg1 {[%clk 0:00:26]} 38. Rxg1 {[%clk 0:00:07]}  Nxd5 {[%clk 0:00:20]} 39. Nxd5 {[%clk 0:00:08]}  Qxd5 {[%clk 0:00:20]} 40. Bxh8 {[%clk 0:00:07]}  Kxh8 {[%clk 0:00:17]} 41. b4 {[%clk 0:00:04]}  Qf5 {[%clk 0:00:18]} 42. bxc5 {[%clk 0:00:04]}  Qxf4+ {[%clk 0:00:18]} 43. Kh1 {[%clk 0:00:05]}  Qf5 {[%clk 0:00:13]} 44. Bg4 {[%clk 0:00:05]}  Qxc5 {[%clk 0:00:12]} 45. Qd7 {[%clk 0:00:05]}  Rg8 {[%clk 0:00:10]} 46. Qe6 {[%clk 0:00:03]}  Qg5 {[%clk 0:00:09]} 47. Qxe4 {[%clk 0:00:02]}  h5 {[%clk 0:00:07]} 48. Qd4+ {[%clk 0:00:03]}  Kh7 {[%clk 0:00:04]} 49. Be2 {[%clk 0:00:02]}  Qxg1+ {[%clk 0:00:02]} 50. Qxg1 {[%clk 0:00:03]}  Rxg1+ {[%clk 0:00:02]} 51. Kxg1 {[%clk 0:00:04]}  Kg6 {[%clk 0:00:03]} 52. Kf2 {[%clk 0:00:05]}  h4 {[%clk 0:00:03]} 53. Ke3 {[%clk 0:00:05]}  Kf5 {[%clk 0:00:04]} 54. Kd4 {[%clk 0:00:03]}  Kf4 {[%clk 0:00:05]} 55. Bg4 {[%clk 0:00:04]}  Kg3 {[%clk 0:00:05]} 56. Kd5 {[%clk 0:00:04]} 1-0


[Site "https://www.chess.com"]

[Event "Titled Tuesday Blitz June 14 Early 2022"]
[White "Rodrigue-Lemieux, Shawn"]
[Black "Martinez Alcantara, Jose Eduardo"]
[WhiteFideId "2620049"]
[BlackFideId "3805662"]
[WhiteElo "1763"]
[BlackElo "2703"]
[Result "0-1"]
[Round "09"]
[TimeControl "180+1"]
[Date "2022.06.14"]
[WhiteClock "0:00:02"]
[BlackClock "0:00:32"]

1. a3 {[%clk 0:03:00]}  d5 {[%clk 0:02:56]} 2. e3 {[%clk 0:03:00]}  Nf6 {[%clk 0:02:56]} 3. c4 {[%clk 0:03:00]}  e6 {[%clk 0:02:55]} 4. Nf3 {[%clk 0:03:00]}  b6 {[%clk 0:02:55]} 5. b4 {[%clk 0:03:01]}  Bb7 {[%clk 0:02:56]} 6. Bb2 {[%clk 0:03:02]}  Nbd7 {[%clk 0:02:56]} 7. Nc3 {[%clk 0:03:01]}  g6 {[%clk 0:02:55]} 8. cxd5 {[%clk 0:03:01]}  exd5 {[%clk 0:02:55]} 9. Rc1 {[%clk 0:02:57]}  c6 {[%clk 0:02:55]} 10. Be2 {[%clk 0:02:54]}  Bg7 {[%clk 0:02:54]} 11. O-O {[%clk 0:02:55]}  O-O {[%clk 0:02:54]} 12. Na4 {[%clk 0:02:48]}  Re8 {[%clk 0:02:53]} 13. Bxf6 {[%clk 0:02:46]}  Bxf6 {[%clk 0:02:49]} 14. d4 {[%clk 0:02:47]}  Be7 {[%clk 0:02:45]} 15. Nb2 {[%clk 0:02:44]}  a5 {[%clk 0:02:43]} 16. Nd3 {[%clk 0:02:39]}  Bd6 {[%clk 0:02:42]} 17. Qb3 {[%clk 0:02:38]}  Qe7 {[%clk 0:02:40]} 18. Rc2 {[%clk 0:02:34]}  axb4 {[%clk 0:02:40]} 19. axb4 {[%clk 0:02:29]}  b5 {[%clk 0:02:40]} 20. Nc5 {[%clk 0:02:27]}  Nb6 {[%clk 0:02:37]} 21. Re1 {[%clk 0:02:05]}  Nc4 {[%clk 0:02:32]} 22. Bxc4 {[%clk 0:02:05]}  bxc4 {[%clk 0:02:28]} 23. Qc3 {[%clk 0:02:04]}  Bc8 {[%clk 0:02:28]} 24. e4 {[%clk 0:01:58]}  Qd8 {[%clk 0:02:14]} 25. Rce2 {[%clk 0:01:39]}  Bg4 {[%clk 0:01:44]} 26. h3 {[%clk 0:01:30]}  Bxf3 {[%clk 0:01:44]} 27. Qxf3 {[%clk 0:01:30]}  Re7 {[%clk 0:01:34]} 28. g3 {[%clk 0:01:18]}  Bxc5 {[%clk 0:01:22]} 29. bxc5 {[%clk 0:01:16]}  dxe4 {[%clk 0:01:23]} 30. Rxe4 {[%clk 0:01:16]}  Qd5 {[%clk 0:01:23]} 31. Kg2 {[%clk 0:01:12]}  Ra3 {[%clk 0:01:09]} 32. R4e3 {[%clk 0:00:20]}  Rexe3 {[%clk 0:00:48]} 33. Rxe3 {[%clk 0:00:16]}  Rxe3 {[%clk 0:00:40]} 34. fxe3 {[%clk 0:00:13]}  c3 {[%clk 0:00:39]} 35. e4 {[%clk 0:00:10]}  Qxd4 {[%clk 0:00:39]} 36. Qe2 {[%clk 0:00:03]}  Qxc5 {[%clk 0:00:39]} 37. Qc2 {[%clk 0:00:02]}  Qd4 {[%clk 0:00:39]} 38. Kf3 {[%clk 0:00:02]}  c5 {[%clk 0:00:37]} 39. e5 {[%clk 0:00:01]}  Qxe5 {[%clk 0:00:37]} 40. Qb3 {[%clk 0:00:02]}  Kg7 {[%clk 0:00:34]} 41. h4 {[%clk 0:00:02]}  Qd4 {[%clk 0:00:34]} 42. h5 {[%clk 0:00:02]}  gxh5 {[%clk 0:00:34]} 43. Qc2 {[%clk 0:00:02]}  c4 {[%clk 0:00:32]} 44. Qf5 {[%clk 0:00:02]}  Qd3+ {[%clk 0:00:32]} 0-1


[Site "https://www.chess.com"]

[Event "Titled Tuesday Blitz June 14 Early 2022"]
[White "Samadov, Read"]
[Black "Royal, Shreyas"]
[WhiteFideId "13417444"]
[BlackFideId "448869"]
[WhiteElo "2084"]
[BlackElo "1986"]
[Result "1-0"]
[Round "09"]
[TimeControl "180+1"]
[Date "2022.06.14"]
[WhiteClock "0:00:36"]
[BlackClock "0:00:19"]

1. d4 {[%clk 0:03:00]}  Nf6 {[%clk 0:02:55]} 2. c4 {[%clk 0:03:01]}  e6 {[%clk 0:02:54]} 3. Nf3 {[%clk 0:03:00]}  d5 {[%clk 0:02:53]} 4. g3 {[%clk 0:03:01]}  Bb4+ {[%clk 0:02:52]} 5. Bd2 {[%clk 0:03:01]}  Be7 {[%clk 0:02:52]} 6. Bg2 {[%clk 0:03:01]}  O-O {[%clk 0:02:52]} 7. O-O {[%clk 0:03:02]}  Nbd7 {[%clk 0:02:50]} 8. Qc2 {[%clk 0:03:03]}  c6 {[%clk 0:02:49]} 9. Rd1 {[%clk 0:03:03]}  b6 {[%clk 0:02:49]} 10. Bf4 {[%clk 0:03:03]}  Bb7 {[%clk 0:02:48]} 11. Nc3 {[%clk 0:03:03]}  dxc4 {[%clk 0:02:43]} 12. Nd2 {[%clk 0:03:03]}  Nd5 {[%clk 0:02:43]} 13. Nxc4 {[%clk 0:03:04]}  Nxf4 {[%clk 0:02:43]} 14. gxf4 {[%clk 0:03:04]}  Qc7 {[%clk 0:02:40]} 15. e3 {[%clk 0:03:05]}  Rac8 {[%clk 0:02:38]} 16. a4 {[%clk 0:03:03]}  Rfd8 {[%clk 0:02:37]} 17. Rac1 {[%clk 0:03:00]}  Nf6 {[%clk 0:02:37]} 18. Qe2 {[%clk 0:02:52]}  c5 {[%clk 0:02:37]} 19. Bxb7 {[%clk 0:02:46]}  Qxb7 {[%clk 0:02:38]} 20. dxc5 {[%clk 0:02:46]}  Bxc5 {[%clk 0:02:30]} 21. Rxd8+ {[%clk 0:02:45]}  Rxd8 {[%clk 0:02:30]} 22. Rd1 {[%clk 0:02:46]}  Rxd1+ {[%clk 0:02:22]} 23. Qxd1 {[%clk 0:02:45]}  g6 {[%clk 0:02:16]} 24. h3 {[%clk 0:02:26]}  Nd5 {[%clk 0:02:11]} 25. Nxd5 {[%clk 0:02:24]}  exd5 {[%clk 0:02:12]} 26. Ne5 {[%clk 0:02:24]}  Bd6 {[%clk 0:02:09]} 27. Nf3 {[%clk 0:02:22]}  Be7 {[%clk 0:02:03]} 28. Qd4 {[%clk 0:02:21]}  Qc6 {[%clk 0:02:03]} 29. Kg2 {[%clk 0:02:20]}  Bf6 {[%clk 0:02:03]} 30. Qb4 {[%clk 0:02:06]}  d4 {[%clk 0:02:00]} 31. exd4 {[%clk 0:02:03]}  Qd5 {[%clk 0:01:55]} 32. Qc3 {[%clk 0:01:55]}  h5 {[%clk 0:01:50]} 33. b4 {[%clk 0:01:51]}  Qe4 {[%clk 0:01:47]} 34. Qe3 {[%clk 0:01:46]}  Qb1 {[%clk 0:01:43]} 35. b5 {[%clk 0:01:42]}  Qa2 {[%clk 0:01:41]} 36. Qe8+ {[%clk 0:01:37]}  Kg7 {[%clk 0:01:41]} 37. Qd7 {[%clk 0:01:19]}  Qxa4 {[%clk 0:01:37]} 38. Ne5 {[%clk 0:01:19]}  Bxe5 {[%clk 0:01:36]} 39. fxe5 {[%clk 0:01:19]}  Qc4 {[%clk 0:01:28]} 40. Qd6 {[%clk 0:01:14]}  Qxb5 {[%clk 0:01:23]} 41. d5 {[%clk 0:01:14]}  Qd3 {[%clk 0:01:16]} 42. Qf6+ {[%clk 0:01:13]}  Kg8 {[%clk 0:01:17]} 43. d6 {[%clk 0:01:12]}  Qd5+ {[%clk 0:01:14]} 44. Kh2 {[%clk 0:01:11]}  a5 {[%clk 0:01:00]} 45. Kg3 {[%clk 0:01:05]}  a4 {[%clk 0:00:56]} 46. Qe7 {[%clk 0:01:04]}  Qd3+ {[%clk 0:00:54]} 47. f3 {[%clk 0:01:04]}  Qe3 {[%clk 0:00:46]} 48. d7 {[%clk 0:00:57]}  h4+ {[%clk 0:00:43]} 49. Kg4 {[%clk 0:00:52]}  Qd4+ {[%clk 0:00:28]} 50. Kg5 {[%clk 0:00:41]}  Qe3+ {[%clk 0:00:26]} 51. f4 {[%clk 0:00:36]}  Qg3+ {[%clk 0:00:25]} 52. Kh6 {[%clk 0:00:37]}  Qxf4+ {[%clk 0:00:25]} 53. Qg5 {[%clk 0:00:38]}  Qxg5+ {[%clk 0:00:19]} 54. Kxg5 {[%clk 0:00:38]}  a3 {[%clk 0:00:18]} 55. d8=Q+ {[%clk 0:00:37]}  Kg7 {[%clk 0:00:19]} 56. e6 {[%clk 0:00:36]} 1-0


[Site "https://www.chess.com"]

[Event "Titled Tuesday Blitz June 14 Early 2022"]
[White "Sarana, Alexey"]
[Black "Sjugirov, Sanan"]
[WhiteFideId "24133795"]
[BlackFideId "4189302"]
[WhiteElo "2666"]
[BlackElo "2602"]
[Result "1-0"]
[Round "09"]
[TimeControl "180+1"]
[Date "2022.06.14"]
[WhiteClock "0:00:09"]
[BlackClock "0:00:01"]

1. d4 {[%clk 0:03:00]}  Nf6 {[%clk 0:02:56]} 2. c4 {[%clk 0:03:01]}  e6 {[%clk 0:02:57]} 3. Nc3 {[%clk 0:03:01]}  Bb4 {[%clk 0:02:57]} 4. e3 {[%clk 0:03:02]}  O-O {[%clk 0:02:55]} 5. Bd3 {[%clk 0:03:03]}  c5 {[%clk 0:02:40]} 6. Ne2 {[%clk 0:02:55]}  d5 {[%clk 0:02:31]} 7. cxd5 {[%clk 0:02:55]}  cxd4 {[%clk 0:02:28]} 8. exd4 {[%clk 0:02:55]}  Nxd5 {[%clk 0:02:26]} 9. O-O {[%clk 0:02:55]}  Nc6 {[%clk 0:02:24]} 10. a3 {[%clk 0:02:55]}  Be7 {[%clk 0:02:21]} 11. Bc2 {[%clk 0:02:43]}  Nxc3 {[%clk 0:01:57]} 12. bxc3 {[%clk 0:02:42]}  Bf6 {[%clk 0:01:57]} 13. Ng3 {[%clk 0:02:38]}  g6 {[%clk 0:01:56]} 14. Ne4 {[%clk 0:02:38]}  Bg7 {[%clk 0:01:56]} 15. Bg5 {[%clk 0:02:34]}  Qa5 {[%clk 0:01:52]} 16. Qf3 {[%clk 0:02:27]}  f6 {[%clk 0:01:39]} 17. Bh4 {[%clk 0:02:02]}  f5 {[%clk 0:01:18]} 18. Nd6 {[%clk 0:01:55]}  Qc7 {[%clk 0:01:04]} 19. Nxc8 {[%clk 0:01:53]}  Raxc8 {[%clk 0:01:05]} 20. Bb3 {[%clk 0:01:53]}  Rce8 {[%clk 0:00:59]} 21. Rfe1 {[%clk 0:01:52]}  Qc8 {[%clk 0:00:37]} 22. d5 {[%clk 0:01:14]}  exd5 {[%clk 0:00:35]} 23. Bxd5+ {[%clk 0:01:12]}  Kh8 {[%clk 0:00:35]} 24. Rad1 {[%clk 0:00:56]}  Rxe1+ {[%clk 0:00:31]} 25. Rxe1 {[%clk 0:00:57]}  Re8 {[%clk 0:00:31]} 26. Rd1 {[%clk 0:00:44]}  Ne5 {[%clk 0:00:26]} 27. Qe3 {[%clk 0:00:40]}  Ng4 {[%clk 0:00:16]} 28. Qd3 {[%clk 0:00:27]}  b6 {[%clk 0:00:10]} 29. h3 {[%clk 0:00:26]}  Ne5 {[%clk 0:00:10]} 30. Qb5 {[%clk 0:00:23]}  h6 {[%clk 0:00:04]} 31. Bb7 {[%clk 0:00:14]}  Qe6 {[%clk 0:00:02]} 32. f4 {[%clk 0:00:10]}  Nf7 {[%clk 0:00:02]} 33. Bd5 {[%clk 0:00:09]}  Qe3+ {[%clk 0:00:02]} 34. Bf2 {[%clk 0:00:10]}  Qe7 {[%clk 0:00:02]} 35. Re1 {[%clk 0:00:09]}  Qxe1+ {[%clk 0:00:02]} 36. Bxe1 {[%clk 0:00:09]}  Rxe1+ {[%clk 0:00:03]} 37. Kf2 {[%clk 0:00:10]}  Nd6 {[%clk 0:00:04]} 38. Qd7 {[%clk 0:00:09]}  Rd1 {[%clk 0:00:01]} 39. Qxd6 {[%clk 0:00:09]} 1-0


[Site "https://www.chess.com"]

[Event "Titled Tuesday Blitz June 14 Early 2022"]
[White "Snehal, Bhosale"]
[Black "Lashkin, Jegor"]
[WhiteFideId "5021995"]
[BlackFideId "13907808"]
[WhiteElo "2103"]
[BlackElo "2368"]
[Result "1-0"]
[Round "09"]
[TimeControl "180+1"]
[Date "2022.06.14"]
[WhiteClock "0:00:15"]
[BlackClock "0:00:02"]

1. d4 {[%clk 0:03:00]}  Nf6 {[%clk 0:02:59]} 2. c4 {[%clk 0:03:00]}  e6 {[%clk 0:02:59]} 3. Nc3 {[%clk 0:03:01]}  Bb4 {[%clk 0:02:59]} 4. Qc2 {[%clk 0:03:01]}  d5 {[%clk 0:02:59]} 5. cxd5 {[%clk 0:03:01]}  exd5 {[%clk 0:03:00]} 6. a3 {[%clk 0:02:57]}  Bxc3+ {[%clk 0:02:54]} 7. Qxc3 {[%clk 0:02:56]}  O-O {[%clk 0:02:55]} 8. f3 {[%clk 0:02:54]}  h6 {[%clk 0:02:47]} 9. e3 {[%clk 0:02:48]}  Re8 {[%clk 0:02:46]} 10. Bd3 {[%clk 0:02:47]}  Nbd7 {[%clk 0:02:36]} 11. Ne2 {[%clk 0:02:46]}  Nf8 {[%clk 0:02:20]} 12. O-O {[%clk 0:02:39]}  Ng6 {[%clk 0:02:12]} 13. Bd2 {[%clk 0:02:32]}  c6 {[%clk 0:02:09]} 14. Rae1 {[%clk 0:02:30]}  Nh4 {[%clk 0:02:04]} 15. Ng3 {[%clk 0:02:19]}  Be6 {[%clk 0:01:41]} 16. Kh1 {[%clk 0:02:18]}  Qd7 {[%clk 0:01:34]} 17. Bb1 {[%clk 0:02:09]}  Rad8 {[%clk 0:01:34]} 18. Bc1 {[%clk 0:02:09]}  Nf5 {[%clk 0:01:32]} 19. Ne2 {[%clk 0:01:46]}  Nd6 {[%clk 0:01:08]} 20. Ng3 {[%clk 0:01:41]}  h5 {[%clk 0:01:05]} 21. Qd3 {[%clk 0:01:23]}  h4 {[%clk 0:01:03]} 22. Nh5 {[%clk 0:01:23]}  Bf5 {[%clk 0:00:36]} 23. Nxf6+ {[%clk 0:01:22]}  gxf6 {[%clk 0:00:37]} 24. e4 {[%clk 0:01:14]}  dxe4 {[%clk 0:00:36]} 25. fxe4 {[%clk 0:00:47]}  Bxe4 {[%clk 0:00:35]} 26. Rxe4 {[%clk 0:00:48]}  Nxe4 {[%clk 0:00:30]} 27. Qf3 {[%clk 0:00:43]}  f5 {[%clk 0:00:16]} 28. Qh5 {[%clk 0:00:41]}  Qxd4 {[%clk 0:00:09]} 29. Qxf5 {[%clk 0:00:40]}  Nf6 {[%clk 0:00:02]} 30. Bh6 {[%clk 0:00:31]}  Rd5 {[%clk 0:00:01]} 31. Qc2 {[%clk 0:00:21]}  Qg4 {[%clk 0:00:02]} 32. h3 {[%clk 0:00:16]}  Qg6 {[%clk 0:00:02]} 33. Rxf6 {[%clk 0:00:15]} 1-0


[Site "https://www.chess.com"]

[Event "Titled Tuesday Blitz June 14 Early 2022"]
[White "Tanenbaum, Zachary"]
[Black "Mickiewicz, Piotr"]
[WhiteFideId "2060850"]
[BlackFideId "1114891"]
[WhiteElo "2175"]
[BlackElo "2209"]
[Result "1-0"]
[Round "09"]
[TimeControl "180+1"]
[Date "2022.06.14"]
[WhiteClock "0:01:17"]
[BlackClock "0:00:15"]

1. e4 {[%clk 0:02:59]}  c5 {[%clk 0:02:59]} 2. Nf3 {[%clk 0:03:00]}  e6 {[%clk 0:02:59]} 3. d4 {[%clk 0:03:00]}  cxd4 {[%clk 0:03:00]} 4. Nxd4 {[%clk 0:03:01]}  Nf6 {[%clk 0:03:00]} 5. Nc3 {[%clk 0:03:02]}  d6 {[%clk 0:03:01]} 6. Be3 {[%clk 0:03:02]}  a6 {[%clk 0:03:00]} 7. f3 {[%clk 0:03:02]}  b5 {[%clk 0:02:58]} 8. Qd2 {[%clk 0:03:02]}  Nbd7 {[%clk 0:02:56]} 9. g4 {[%clk 0:03:02]}  Nb6 {[%clk 0:02:55]} 10. O-O-O {[%clk 0:02:58]}  Bb7 {[%clk 0:02:53]} 11. a3 {[%clk 0:02:56]}  Rc8 {[%clk 0:02:51]} 12. g5 {[%clk 0:02:56]}  Nfd7 {[%clk 0:02:50]} 13. f4 {[%clk 0:02:56]}  Rxc3 {[%clk 0:02:18]} 14. Qxc3 {[%clk 0:02:55]}  Bxe4 {[%clk 0:02:18]} 15. Rg1 {[%clk 0:02:52]}  Nd5 {[%clk 0:02:05]} 16. Qd2 {[%clk 0:02:49]}  Nxe3 {[%clk 0:02:02]} 17. Qxe3 {[%clk 0:02:50]}  Qa8 {[%clk 0:02:01]} 18. f5 {[%clk 0:02:24]}  e5 {[%clk 0:01:59]} 19. Bd3 {[%clk 0:02:24]}  Bb7 {[%clk 0:01:29]} 20. f6 {[%clk 0:02:08]}  g6 {[%clk 0:01:06]} 21. Nb3 {[%clk 0:01:45]}  d5 {[%clk 0:01:01]} 22. Rge1 {[%clk 0:01:42]}  Bd6 {[%clk 0:01:00]} 23. Qh3 {[%clk 0:01:42]}  h5 {[%clk 0:00:53]} 24. Bxg6 {[%clk 0:01:40]}  Nf8 {[%clk 0:00:20]} 25. Bxh5 {[%clk 0:01:30]}  e4 {[%clk 0:00:19]} 26. Bxf7+ {[%clk 0:01:26]}  Kxf7 {[%clk 0:00:18]} 27. Qxh8 {[%clk 0:01:27]}  Bc8 {[%clk 0:00:16]} 28. Qg7+ {[%clk 0:01:25]}  Ke6 {[%clk 0:00:16]} 29. Nd4+ {[%clk 0:01:20]}  Ke5 {[%clk 0:00:16]} 30. f7+ {[%clk 0:01:20]}  Kf4 {[%clk 0:00:15]} 31. Qf6+ {[%clk 0:01:18]}  Kg4 {[%clk 0:00:15]} 32. Qxd6 {[%clk 0:01:18]}  Kh5 {[%clk 0:00:15]} 33. Qh6+ {[%clk 0:01:17]} 1-0


[Site "https://www.chess.com"]